bitfinex/quotes_ETHUSD_20220226
["timestamp","ask_amount","ask_price","bid_price","bid_amount"]
[1645843668719,0.66805472,2812.6,2811.4,2.50182919]
[1645843668920,0.1421,2812.5,2811.4,2.50182919]
[1645843669118,0.00467888,2811.9,2811.4,2.50182919]
[1645843670222,0.0046788,2811.9,2811.4,2.50182919]
[1645843671223,1.50332769,2811.8,2811.4,2.50182919]
[1645843671468,0.0046788,2811.9,2811.4,1.33902919]
[1645843671874,1.50333487,2811.8,2811.4,1.33902919]
[1645843672673,0.0051562,2811.9,2811.4,1.33902919]
[1645843672873,1.50332712,2811.8,2811.4,1.33902919]
[1645843673574,0.1421,2812.4,2811.4,1.63902919]
[1645843673775,1.50313078,2812.3,2811.5,0.88917]
[1645843673976,0.00343741,2812.6,2811.5,2.07467]
[1645843673977,0.0051562,2811.9,2811.5,2.07467]
[1645843674776,0.00343741,2812.6,2811.5,2.07467]
[1645843675226,0.00515638,2811.9,2811.5,1.1855]
[1645843676025,0.4967,2812.5,2811.5,1.1855]
[1645843676233,0.00534748,2811.9,2811.5,1.1855]
[1645843676530,1.50322808,2811.8,2811.5,1.1855]
[1645843676729,0.00534748,2811.9,2811.4,1.33902919]
[1645843677134,1.2486,2812.4,2811.4,1.33902919]
[1645843677431,0.00534738,2811.9,2811.4,1.33902919]
[1645843678332,0.02138715,2812.2,2811.4,1.33902919]
[1645843678530,1.50320357,2812.1,2811.4,1.33902919]
[1645843678732,0.00534738,2811.9,2811.6,0.88918]
[1645843679575,0.1421,2812.5,2811.6,0.88918]
[1645843679776,1.50322404,2812.4,2811.6,0.88918]
[1645843679975,0.00508379,2811.9,2811.6,0.88918]
[1645843680777,0.1421,2812.5,2811.6,0.88918]
[1645843680977,0.00508379,2811.9,2811.6,0.88918]
[1645843681179,0.00508379,2811.9,2811.7,1.33598443]
[1645843681378,0.00508379,2811.9,2811.6,0.88918]
[1645843681985,8.94588332,2812.7,2811.6,0.88918]
[1645843682184,0.00508379,2811.9,2811.6,0.88918]
[1645843682583,0.00508379,2811.9,2811.3,4.02767]
[1645843682817,0.00508379,2811.9,2811.3,4.32767]
[1645843683018,0.00508379,2811.9,2811.3,4.02767]
[1645843683218,0.00343741,2812.6,2811.3,4.02767]
[1645843683418,0.00542637,2811.9,2811.6,1.23420707]
[1645843683720,1.50328241,2811.8,2811.3,4.02767]
[1645843684118,1.50328241,2811.8,2811.3,2.77837]
[1645843684620,0.50013741,2812.4,2811.4,1.10752073]
[1645843684621,0.00559122,2811.9,2811.4,1.10752073]
[1645843684820,1.5032984,2811.8,2811.2,1.63239263]
[1645843685619,1.5032984,2811.8,2811.2,1.6268]
[1645843685820,1.5032984,2811.7,2811.2,1.6268]
[1645843686020,1.5032984,2811.6,2811.2,1.63239259]
[1645843686224,1.5032984,2811.5,2811.2,0.00559259]
[1645843686485,0.00559119,2811.9,2811.2,0.00559259]
[1645843686669,1.5034439,2811.8,2811.2,0.00559259]
[1645843687068,1.5034439,2811.8,2811.2,0.0055925]
[1645843688275,1.5034439,2811.8,2811.2,0.00540384]
[1645843688977,1.6455439,2811.8,2811.2,0.00540384]
[1645843689174,1.5034439,2811.7,2810.9,1.0]
[1645843689377,1.5034439,2811.7,2810.8,2.12914]
[1645843689576,0.00540249,2811.9,2811.2,0.00540384]
[1645843689775,0.1421,2811.8,2811.2,0.00540384]
[1645843690417,0.1421,2811.8,2810.8,2.12914]
[1645843690617,3.2715,2812.1,2811.2,0.00540384]
[1645843690618,0.00540249,2811.9,2811.2,0.00540384]
[1645843691623,2.4136,2812.1,2810.8,2.42914]
[1645843691822,0.00559122,2811.9,2811.2,0.00559263]
[1645843692626,0.4967,2811.8,2811.2,0.00559263]
[1645843692831,0.7967,2811.8,2810.6,0.00376166]
[1645843693226,1.9822,2811.8,2811.2,0.00559263]
[1645843693427,0.3546,2811.6,2811.2,0.00559263]
[1645843693627,0.1421,2811.5,2811.2,0.00559263]
[1645843694116,0.1421,2811.5,2810.3,0.00376166]
[1645843694319,0.1421,2811.5,2811.2,0.0055925]
[1645843695324,0.1421,2811.5,2810.3,2.25287817]
[1645843695526,0.1421,2811.5,2811.2,0.0055925]
[1645843696523,0.1421,2811.5,2810.3,2.23287817]
[1645843696723,0.1421,2811.5,2811.2,0.0055925]
[1645843697727,0.1421,2811.5,2810.3,2.23287817]
[1645843697926,0.1421,2811.5,2811.2,0.00540373]
[1645843699130,0.1421,2811.5,2810.3,2.23287817]
[1645843699329,0.1421,2811.5,2811.2,0.00540373]
[1645843701327,0.1421,2811.5,2810.3,2.23287817]
[1645843701570,0.1421,2811.5,2811.2,0.00532529]
[1645843702371,0.1421,2811.5,2810.3,2.23287817]
[1645843702570,0.1421,2811.5,2810.3,0.87336166]
[1645843702770,0.1421,2811.5,2811.2,0.00514697]
[1645843703375,0.01029393,2811.1,2810.3,0.87336166]
[1645843704579,0.01029393,2811.1,2810.3,0.00376166]
[1645843704975,0.1423,2811.0,2810.3,0.00376166]
[1645843706447,0.01029393,2811.1,2810.5,0.00389098]
[1645843707446,0.01029393,2811.1,2810.7,0.00389077]
[1645843708447,0.01029393,2811.1,2810.2,1.1879]
[1645843708448,0.01029393,2811.1,2810.2,1.02166166]
[1645843708650,0.01029393,2811.1,2810.8,0.0055942]
[1645843709685,0.01029393,2811.1,2810.2,1.02166166]
[1645843709983,0.01029393,2811.1,2810.8,0.00559413]
[1645843711188,0.01029393,2811.1,2810.8,0.00558992]
[1645843711586,0.01029393,2811.1,2810.5,1.03866736]
[1645843712820,0.01029393,2811.1,2810.2,0.80725158]
[1645843713824,0.01029393,2811.1,2810.2,1.8455226]
[1645843714626,0.01029393,2811.1,2810.2,1.84926764]
[1645843714825,0.01029393,2811.1,2810.5,0.00542281]
[1645843715626,0.01029393,2811.1,2810.3,0.00374504]
[1645843715827,0.01029393,2811.1,2810.7,0.0054226]
[1645843716883,0.01029393,2811.1,2810.3,0.00374504]
[1645843717285,0.01029393,2811.1,2810.7,0.00542266]
[1645843719287,0.01029393,2811.1,2810.3,0.00374504]
[1645843719491,1.50387129,2811.0,2810.3,0.00374504]
[1645843719688,1.80387129,2811.0,2810.7,0.00502634]
[1645843719894,0.3,2811.0,2810.7,0.00502634]
[1645843720238,1.80392884,2810.9,2810.7,0.00502634]
[1645843720641,0.3,2810.9,2809.9,4.2108]
[1645843720842,0.3,2810.9,2810.7,0.00502632]
[1645843721042,0.31029393,2811.1,2810.7,0.00502632]
[1645843721241,1.80391376,2811.0,2810.7,0.00502632]
[1645843721445,1.50391376,2810.9,2810.7,0.00502632]
[1645843721746,0.3,2811.0,2809.9,1.2223]
[1645843722141,0.31029393,2811.1,2809.9,1.2223]
[1645843722542,0.01029393,2811.1,2809.9,1.2223]
[1645843723142,0.01570501,2811.1,2810.4,0.00541253]
[1645843723544,0.01570501,2811.1,2810.4,1.16677229]
[1645843723746,0.01570501,2811.1,2810.1,0.88966]
[1645843723994,0.01029393,2811.1,2810.1,0.88966]
[1645843724190,0.01029393,2811.1,2809.9,2.50700253]
[1645843724391,0.01029393,2811.1,2809.9,2.80700253]
[1645843724990,0.01029393,2811.1,2810.2,1.32424953]
[1645843726590,0.01029393,2811.1,2809.9,2.80700253]
[1645843726792,0.00559364,2811.0,2810.3,0.00559504]
[1645843727592,0.01029393,2811.1,2810.0,0.00372577]
[1645843727820,1.50384587,2811.0,2810.0,0.00372577]
[1645843728020,1.50943951,2811.0,2810.3,0.00559504]
[1645843728220,0.00559364,2811.0,2810.3,0.00559504]
[1645843728826,0.01029393,2811.1,2810.0,0.00372577]
[1645843729036,1.50385511,2811.0,2810.0,0.00372577]
[1645843729229,1.50944875,2811.0,2810.3,0.00559504]
[1645843729428,1.50385511,2810.9,2810.3,0.00559504]
[1645843729631,1.50385511,2810.9,2809.9,2.37632334]
[1645843730032,1.50385511,2810.9,2809.9,2.07632334]
[1645843730229,1.50385511,2810.8,2809.9,2.07632334]
[1645843730430,0.1423,2811.0,2809.9,2.07632334]
[1645843730631,1.50389478,2810.9,2810.1,1.30614168]
[1645843731573,0.00518361,2810.7,2810.2,0.00526167]
[1645843732676,0.00518352,2810.7,2810.2,0.00526165]
[1645843733676,0.1423,2811.0,2809.9,2.07632334]
[1645843733875,1.50389247,2810.9,2809.9,2.07632334]
[1645843734075,0.00518352,2810.7,2810.2,0.00526165]
[1645843734880,0.1423,2811.0,2809.9,3.34925648]
[1645843735076,1.50390259,2810.9,2809.9,2.07632334]
[1645843735327,0.00559403,2810.7,2810.2,0.00559512]
[1645843736131,1.5039203,2810.6,2810.2,0.00559512]
[1645843737435,1.5039203,2810.6,2810.2,0.01119021]
[1645843737631,1.5039203,2810.6,2810.2,0.00559509]
[1645843738535,1.5039203,2810.6,2810.0,0.00370744]
[1645843738734,1.5039203,2810.5,2810.2,0.00499959]
[1645843738978,0.00472978,2810.7,2810.2,0.00499959]
[1645843739186,0.3546,2810.5,2810.2,0.00499959]
[1645843739384,11.1846,2810.3,2810.2,9.959e-05]
[1645843739685,11.1846,2810.3,2809.8,0.25]
[1645843739686,12.68853069,2810.3,2809.8,0.25]
[1645843739882,0.3546,2810.1,2809.6,0.00370744]
[1645843740087,0.3546,2810.1,2809.5,1.5971]
[1645843740088,1.64623069,2810.0,2809.5,1.5971]
[1645843740288,1.64623069,2810.0,2809.4,0.00370744]
[1645843740289,1.50393069,2809.9,2809.4,0.00370744]
[1645843740485,1.50393069,2809.9,2809.3,1.1678]
[1645843740691,2.15853069,2809.9,2809.3,1.1678]
[1645843740885,0.6546,2809.9,2809.3,1.1678]
[1645843741086,1.50435432,2809.8,2809.3,1.1678]
[1645843741289,1.85895432,2809.8,2809.2,0.00370744]
[1645843741491,0.9546,2809.9,2808.8,2.60050744]
[1645843741691,1.50438817,2809.8,2808.8,2.60050744]
[1645843742288,1.85898817,2809.8,2808.8,2.60050744]
[1645843742489,1.85898817,2809.7,2809.2,0.00559876]
[1645843742735,1.50438817,2809.6,2809.2,0.00559876]
[1645843742929,1.64668817,2809.6,2809.2,0.00559876]
[1645843743129,0.1423,2809.6,2809.2,0.00559876]
[1645843743329,11.6269,2809.7,2809.2,0.00559876]
[1645843743730,12.6269,2809.7,2809.3,0.00559862]
[1645843744331,1.50454943,2809.6,2809.3,0.00559862]
[1645843744529,1.50454943,2809.6,2808.3,1.1963]
[1645843744530,11.3269,2809.5,2808.3,1.1963]
[1645843744732,0.3546,2809.3,2808.3,1.1963]
[1645843744929,0.497,2809.3,2808.7,0.02239946]
[1645843745129,0.6546,2809.3,2808.7,0.02239946]
[1645843745532,0.3,2809.3,2808.7,0.02239946]
[1645843745734,0.4423,2809.4,2808.7,0.02239946]
[1645843745934,0.3,2809.5,2808.7,0.02239946]
[1645843746134,0.3,2809.5,2808.6,1.31186819]
[1645843746135,0.3,2809.6,2808.9,0.00559917]
[1645843746334,7.3765,2809.7,2808.9,0.00559917]
[1645843746585,0.3546,2809.6,2808.9,0.00559917]
[1645843746987,7.3765,2809.7,2808.6,1.31186819]
[1645843747187,7.3765,2809.7,2809.2,0.00500726]
[1645843747589,7.3765,2809.7,2808.6,0.836908]
[1645843747893,0.3546,2809.6,2808.3,1.1963]
[1645843748589,0.1424,2809.5,2808.4,0.0036916]
[1645843748892,0.1424,2809.5,2808.6,1.17353407]
[1645843749187,0.1424,2809.5,2808.7,0.0036916]
[1645843749795,0.3546,2809.6,2808.7,0.0036916]
[1645843749993,11.1846,2809.4,2808.7,0.0036916]
[1645843750239,11.1846,2809.4,2808.4,0.0036916]
[1645843750240,11.1846,2809.2,2808.4,0.0036916]
[1645843750539,0.1424,2809.1,2808.0,0.6679916]
[1645843750940,0.1424,2809.1,2808.7,0.00560194]
[1645843750941,11.327,2809.1,2808.7,0.00560194]
[1645843751343,1.797,2809.1,2808.7,0.00560194]
[1645843751741,1.797,2809.1,2808.0,0.6679916]
[1645843751742,11.627,2809.1,2808.0,0.6679916]
[1645843752140,12.627,2809.1,2808.7,0.00560184]
[1645843753048,1.797,2809.1,2808.0,0.6679916]
[1645843753244,1.797,2809.1,2808.7,0.00560184]
[1645843753245,0.797,2809.1,2808.7,0.00560184]
[1645843754274,0.6546,2809.1,2808.0,0.6679916]
[1645843754475,0.6546,2809.1,2808.7,0.00560184]
[1645843755281,0.6546,2809.1,2808.0,0.6679916]
[1645843755282,0.6546,2809.1,2808.2,1.31753178]
[1645843755685,0.6546,2809.1,2808.7,0.00560184]
[1645843757719,0.6546,2809.1,2808.1,0.02608458]
[1645843757923,0.1424,2809.0,2808.1,1.14355152]
[1645843758125,0.1424,2809.0,2808.7,0.00560184]
[1645843759027,0.1424,2809.0,2808.2,0.00367294]
[1645843759231,0.1424,2809.0,2808.7,0.00523443]
[1645843760233,0.1424,2809.0,2808.3,0.00367294]
[1645843760433,0.1424,2809.0,2808.7,0.00523443]
[1645843761334,0.1424,2809.0,2808.3,0.00367294]
[1645843761582,0.1424,2809.0,2808.7,0.00523443]
[1645843762584,0.1424,2809.0,2808.3,0.00367294]
[1645843762781,0.1424,2809.0,2808.7,0.00560181]
[1645843763380,0.3,2809.0,2808.7,0.00560181]
[1645843763782,0.1424,2809.1,2808.7,0.00560181]
[1645843763983,0.3546,2808.9,2808.7,0.01120362]
[1645843764181,11.1846,2808.8,2808.7,0.00560181]
[1645843764381,14.6846,2808.8,2808.7,0.00560181]
[1645843764782,15.6846,2808.8,2808.7,0.00560181]
[1645843764982,15.6846,2808.8,2807.7,0.00367294]
[1645843765224,15.6846,2808.8,2808.6,0.00560188]
[1645843765628,14.6846,2808.7,2808.6,0.00560188]
[1645843765829,5.1546,2808.7,2808.6,0.00560188]
[1645843766030,1.6546,2808.7,2808.6,0.00560188]
[1645843766235,1.6546,2808.7,2808.1,0.02241126]
[1645843766236,0.01120376,2808.5,2808.1,0.02241126]
[1645843766631,0.01120376,2808.5,2808.1,0.02100889]
[1645843767633,0.01120376,2808.5,2807.8,0.00367294]
[1645843767934,0.01120376,2808.5,2807.7,1.1441936]
[1645843768736,0.01120376,2808.5,2808.4,1.08907749]
[1645843769386,0.01120376,2808.5,2807.6,1.78440294]
[1645843769585,0.01120376,2808.5,2807.7,0.00367294]
[1645843770190,0.01120376,2808.5,2807.9,0.89036]
[1645843770586,0.01120376,2808.5,2807.9,1.19036]
[1645843770786,0.01120376,2808.5,2808.0,1.12875467]
[1645843771190,0.01120376,2808.5,2808.1,0.00385659]
[1645843771587,0.01120376,2808.5,2808.0,0.88261126]
[1645843771789,0.01120376,2808.5,2808.0,6.18261126]
[1645843771989,0.01120376,2808.5,2808.1,11.51081262]
[1645843772190,0.01120376,2808.5,2808.1,0.64081262]
[1645843772386,0.01120376,2808.5,2808.1,4.83971262]
[1645843772826,0.01120376,2808.5,2808.1,5.03382036]
[1645843773831,0.01120376,2808.5,2808.2,11.76012]
[1645843774033,0.01120376,2808.5,2808.2,14.17542226]
[1645843774233,0.01120376,2808.5,2808.3,0.19501088]
[1645843774629,0.01120376,2808.5,2808.3,0.04501088]
[1645843775430,0.01120376,2808.5,2808.3,1.78033]
[1645843775632,0.01120376,2808.5,2808.3,3.07632148]
[1645843775831,0.01120376,2808.5,2808.4,0.47415761]
[1645843776032,0.01120376,2808.5,2808.4,0.3]
[1645843776231,0.01120376,2808.5,2808.4,0.51291454]
[1645843776487,0.01120376,2808.5,2808.4,0.3]
[1645843776681,0.01120376,2808.5,2808.4,0.46716185]
[1645843776878,0.01120376,2808.5,2808.4,0.3]
[1645843777080,0.01120376,2808.5,2808.4,0.49587063]
[1645843777280,0.01120376,2808.5,2808.4,0.3]
[1645843777480,0.01120376,2808.5,2808.4,0.46123675]
[1645843777679,0.01120376,2808.5,2808.4,0.3]
[1645843777878,0.01120376,2808.5,2808.4,0.48990166]
[1645843778078,0.01120376,2808.5,2808.4,0.3]
[1645843778283,0.01120376,2808.5,2808.4,0.46080539]
[1645843778680,0.01120376,2808.5,2808.4,0.3]
[1645843778883,0.01120376,2808.5,2808.4,0.48746919]
[1645843779081,0.01120376,2808.5,2808.4,0.3]
[1645843779285,0.01120376,2808.5,2808.4,0.46533895]
[1645843779482,0.01120376,2808.5,2808.4,0.3]
[1645843779683,0.01120376,2808.5,2808.4,0.50966375]
[1645843779882,0.01120376,2808.5,2808.4,0.3]
[1645843782747,0.01120376,2808.5,2808.3,2.92063]
[1645843783749,0.01120376,2808.5,2808.3,1.1403]
[1645843784032,0.012455,2810.9,2808.5,8.5]
[1645843784216,0.23804093,2810.7,2809.8,0.01238173]
[1645843784415,2.40759944,2811.6,2810.6,0.01210051]
[1645843784611,0.54609549,2812.2,2810.6,0.01210051]
[1645843784612,1.37241466,2812.2,2810.9,0.01207934]
[1645843784815,2.2560805,2813.3,2811.0,0.425]
[1645843784816,2.9411887,2812.5,2811.0,0.425]
[1645843785016,1.24409859,2812.4,2811.8,5.309]
[1645843785211,1.79081877,2813.7,2812.2,5.309]
[1645843785212,0.67171583,2813.2,2812.2,5.309]
[1645843785413,0.67171583,2813.9,2812.6,5.0]
[1645843785622,0.67171583,2814.1,2812.8,6.0]
[1645843785819,2.4050575,2814.2,2813.0,0.88856]
[1645843785820,0.5,2813.6,2813.0,0.88856]
[1645843786021,2.4050575,2814.2,2813.1,1.43904534]
[1645843786219,2.4050575,2814.4,2813.2,19.6636]
[1645843786420,1.50260292,2814.3,2813.4,5.309]
[1645843786620,1.50260292,2814.3,2813.5,0.425]
[1645843786621,3.5,2814.2,2813.5,0.425]
[1645843786822,1.50260292,2814.1,2813.5,0.425]
[1645843787024,0.00161283,2813.9,2813.4,0.88829]
[1645843787220,0.20266436,2813.4,2813.3,1.77658]
[1645843787424,1.20266436,2813.4,2813.1,0.43819997]
[1645843787620,1.20266436,2813.4,2812.7,1.0]
[1645843787839,0.20266436,2813.4,2812.6,0.88894]
[1645843788039,1.0,2812.7,2812.4,0.25]
[1645843788241,0.20792328,2813.4,2811.8,0.425]
[1645843788442,1.0,2812.1,2811.8,0.425]
[1645843789445,1.00556445,2812.1,2811.8,0.425]
[1645843789756,1.00556445,2812.1,2811.3,0.25]
[1645843789757,0.00556445,2812.1,2811.3,0.25]
[1645843789944,1.0,2812.0,2810.9,1.2049]
[1645843790146,1.0,2812.0,2811.0,0.07517045]
[1645843790147,0.1421,2811.9,2811.0,0.07517045]
[1645843790547,1.32554703,2811.6,2811.0,0.07517045]
[1645843790743,1.32554703,2811.6,2810.7,0.88954]
[1645843790944,1.32554703,2811.6,2810.8,0.07517153]
[1645843791888,0.00556503,2811.3,2810.8,0.07517153]
[1645843792689,0.00556503,2811.3,2810.7,1.18954]
[1645843793190,0.00545914,2811.2,2810.7,1.18954]
[1645843793992,1.32554703,2811.6,2810.7,1.18954]
[1645843794191,0.00545914,2811.1,2810.7,1.18954]
[1645843795244,1.32554703,2811.6,2810.7,1.18954]
[1645843795443,0.00515518,2811.0,2810.7,1.18954]
[1645843796649,0.00509643,2811.0,2810.7,1.18954]
[1645843797852,0.00158251,2811.0,2810.7,1.18954]
[1645843798851,0.00158251,2811.0,2810.7,21.24320491]
[1645843799386,0.00158251,2811.0,2810.7,22.24320491]
[1645843799993,0.00632907,2811.4,2810.7,22.24320491]
[1645843800190,0.4969,2812.1,2810.7,22.24320491]
[1645843800390,0.3546,2811.9,2810.7,22.24320491]
[1645843800593,0.4967,2811.9,2810.7,22.24320491]
[1645843800794,0.1421,2811.9,2810.8,4.11913748]
[1645843801093,0.4967,2811.9,2810.7,2.18954]
[1645843801292,0.4967,2811.9,2810.7,1.18954]
[1645843801293,0.3546,2811.5,2810.7,1.18954]
[1645843802295,0.1421,2811.9,2810.7,1.18954]
[1645843802736,0.1421,2811.9,2810.8,3.5]
[1645843802939,0.00349424,2812.3,2810.9,2.63354022]
[1645843803139,0.00349424,2812.3,2811.2,0.88923]
[1645843803334,0.00349424,2812.7,2811.8,1.27596389]
[1645843803534,0.1421,2812.8,2811.8,1.27596389]
[1645843803733,0.14559424,2812.8,2811.7,0.3]
[1645843803938,0.00171924,2811.7,2811.5,1.77843]
[1645843804339,0.00171924,2811.7,2811.4,1.2073]
[1645843804739,0.6546,2812.6,2811.4,1.2073]
[1645843804941,0.0056313,2811.7,2811.4,1.2073]
[1645843805339,0.0056313,2811.7,2811.3,0.00563226]
[1645843805938,0.0056313,2811.7,2811.2,0.88938]
[1645843805939,0.1421,2812.1,2811.2,0.88938]
[1645843806140,0.3546,2812.3,2811.2,0.88938]
[1645843806341,0.00563144,2811.6,2811.3,0.0056322]
[1645843807226,0.00483144,2811.6,2811.3,0.0056322]
[1645843807426,0.00563151,2811.6,2811.3,0.00563217]
[1645843808230,1.81816559,2812.2,2811.2,0.88938]
[1645843808429,1.46356559,2812.2,2811.2,0.88938]
[1645843808728,0.00111254,2811.6,2811.2,0.88938]
[1645843809135,0.00111254,2811.6,2810.7,1.2189]
[1645843809330,1.08372065,2811.4,2810.7,1.2189]
[1645843809533,1.08372065,2811.4,2810.5,1.1457]
[1645843809730,0.3,2811.6,2810.1,5.5796]
[1645843809933,0.30370639,2811.6,2811.3,0.00502972]
[1645843810131,0.00370639,2811.6,2811.3,0.00502972]
[1645843810340,0.30370639,2811.6,2811.3,0.00502972]
[1645843810938,0.00370645,2811.6,2811.3,0.00502973]
[1645843811139,1.15653516,2811.5,2811.3,0.00502973]
[1645843811342,0.00370645,2811.6,2811.3,0.00502973]
[1645843811946,0.6546,2811.9,2810.7,0.88957]
[1645843812143,0.00502556,2811.6,2811.3,0.00542551]
[1645843813044,1.59069917,2811.6,2810.7,0.88957]
[1645843813343,1.59069917,2811.6,2811.3,0.00542551]
[1645843813344,1.59572473,2811.6,2811.3,0.00542551]
[1645843813745,0.00502556,2811.6,2811.3,0.00542551]
[1645843814377,0.3546,2812.1,2811.0,0.88943]
[1645843814578,0.00502556,2811.6,2811.3,0.00542551]
[1645843815577,1.55239057,2811.9,2810.9,1.77875]
[1645843815779,0.00540484,2811.6,2811.3,0.0055393]
[1645843818138,0.3,2812.0,2811.3,0.00363343]
[1645843818338,0.30349424,2812.2,2811.3,0.00363343]
[1645843818544,0.00349424,2812.5,2811.3,3.93340187]
[1645843818739,0.00349424,2812.5,2811.4,0.07516844]
[1645843819338,0.4968,2813.1,2811.4,0.42976844]
[1645843819339,1.34955913,2812.4,2811.4,0.42976844]
[1645843819539,0.00479285,2812.0,2811.5,0.07516844]
[1645843819739,0.00479285,2812.0,2811.6,0.07516844]
[1645843819939,0.00479285,2812.0,2811.7,0.07516844]
[1645843820140,0.00479285,2812.0,2811.3,3.50852942]
[1645843820342,0.00479285,2812.0,2811.4,0.07516168]
[1645843820542,0.00479285,2812.0,2811.4,0.42976168]
[1645843820742,0.01916851,2812.5,2811.5,1.30716168]
[1645843820743,0.00144143,2811.9,2811.5,1.30716168]
[1645843820941,0.00144143,2811.9,2811.6,0.07516168]
[1645843821341,0.00144143,2811.9,2811.6,0.42976168]
[1645843821593,0.00349424,2812.4,2811.7,0.07516168]
[1645843821792,0.00479285,2811.9,2811.7,0.07516168]
[1645843821991,0.00479285,2811.9,2811.8,0.07516168]
[1645843822392,0.00479285,2811.9,2811.8,0.07516091]
[1645843822593,0.00479285,2811.9,2811.6,0.07516091]
[1645843822793,1.40499232,2812.1,2811.6,0.07516091]
[1645843822995,0.00546573,2812.0,2811.6,0.07516091]
[1645843823195,0.00546573,2812.0,2811.7,0.07516091]
[1645843823394,0.00546573,2812.0,2811.8,0.07516091]
[1645843823694,0.00546573,2812.0,2811.9,0.07516091]
[1645843823897,0.6546,2813.1,2811.4,1.1653]
[1645843823898,1.24359962,2812.2,2811.4,1.1653]
[1645843824193,0.00546566,2812.0,2811.5,0.07516371]
[1645843825254,1.24359962,2812.2,2811.5,0.07516371]
[1645843825442,0.00563307,2811.9,2811.5,0.07516371]
[1645843826442,1.24359962,2812.2,2811.5,0.07516371]
[1645843826651,0.0051823,2811.8,2811.5,0.07516371]
[1645843827147,0.0043823,2811.8,2811.5,0.07516371]
[1645843827547,0.00349424,2812.7,2811.6,0.66427591]
[1645843827749,0.00349424,2812.5,2811.6,0.66427591]
[1645843828048,1.43711621,2812.7,2811.6,1.62867962]
[1645843828246,0.00349424,2812.6,2811.7,0.73943962]
[1645843828649,0.00349424,2812.6,2811.8,0.66427591]
[1645843828983,0.00349424,2813.0,2811.8,0.66427591]
[1645843829185,0.00349424,2812.6,2811.8,0.66427591]
[1645843829384,1.44065229,2813.0,2811.8,0.66427591]
[1645843829784,1.44065229,2813.0,2811.8,0.73943962]
[1645843830190,0.00563601,2812.5,2811.8,0.73943962]
[1645843830588,0.00563601,2812.5,2811.9,0.07516371]
[1645843830789,0.00563601,2812.5,2812.0,0.07516371]
[1645843830994,0.00563601,2812.5,2812.0,0.66427591]
[1645843831192,0.02603491,2813.0,2812.0,0.66427591]
[1645843831193,0.00349424,2813.0,2812.0,0.66427591]
[1645843831597,0.00563629,2812.3,2812.0,0.66427591]
[1645843831990,0.00563629,2812.3,2811.9,0.73943962]
[1645843832190,0.00563629,2812.3,2812.0,0.66427591]
[1645843832392,0.00563629,2812.3,2812.1,0.07516371]
[1645843832590,0.00563629,2812.3,2812.2,0.07516371]
[1645843832591,0.00563636,2812.3,2812.2,0.07516371]
[1645843832830,0.00563636,2812.3,2812.1,0.66427591]
[1645843833634,1.33462981,2812.8,2812.1,0.66427591]
[1645843833832,0.0017195,2812.3,2812.1,0.66427591]
[1645843834033,0.0017195,2812.3,2812.2,0.07516371]
[1645843834231,0.0017195,2812.3,2812.0,0.66427591]
[1645843834432,0.0017195,2812.3,2812.2,0.66427591]
[1645843834632,0.00349424,2812.7,2812.2,0.66427591]
[1645843834834,1.34150677,2812.8,2812.2,0.66427591]
[1645843834835,1.33462981,2812.8,2812.2,0.66427591]
[1645843835033,0.00155255,2812.3,2812.2,0.66427591]
[1645843835433,0.00155255,2812.3,2812.2,0.07516371]
[1645843835633,0.00155255,2812.3,2812.2,0.88570121]
[1645843835934,0.00349424,2813.1,2812.2,0.88570121]
[1645843836135,1.79718127,2813.2,2812.4,0.67280681]
[1645843836333,1.20508196,2812.6,2812.4,0.67280681]
[1645843836606,1.20508196,2812.6,2812.5,0.07516371]
[1645843836807,0.00620929,2812.8,2812.5,0.07516371]
[1645843837007,0.00620929,2812.8,2812.6,0.07516371]
[1645843837207,0.00620929,2812.8,2812.7,0.07516371]
[1645843837409,0.00349424,2813.1,2812.4,0.88902]
[1645843837410,0.0051634,2812.7,2812.4,0.88902]
[1645843837608,0.0051634,2812.7,2812.5,0.07514482]
[1645843838007,1.40147871,2812.6,2812.5,0.07514482]
[1645843838407,1.40147871,2812.6,2812.0,0.88570121]
[1645843838408,0.0051634,2812.7,2812.3,0.74795163]
[1645843838607,0.0051634,2812.7,2812.4,0.07514482]
[1645843838812,0.00519388,2812.7,2812.5,0.07514482]
[1645843839011,0.00519388,2812.7,2812.6,0.07514482]
[1645843839412,0.00519388,2812.7,2812.5,0.67280681]
[1645843839811,0.00519388,2812.7,2812.6,0.74795163]
[1645843840011,0.00519388,2812.8,2812.6,0.74795163]
[1645843840247,0.00519388,2812.8,2812.7,0.07514482]
[1645843840434,0.00519388,2812.8,2812.7,0.74795163]
[1645843840835,0.00519388,2812.8,2812.7,0.07514482]
[1645843841037,0.00519388,2812.9,2812.7,0.07514482]
[1645843841237,0.00519388,2812.9,2812.8,0.07514482]
[1645843841546,0.00519388,2812.9,2812.8,0.67280681]
[1645843841740,0.00519388,2812.9,2812.8,0.07514482]
[1645843842342,0.00494371,2813.0,2812.6,0.74795163]
[1645843842541,0.00494371,2813.0,2812.7,0.74795163]
[1645843842742,0.00494371,2813.0,2812.8,0.07514482]
[1645843842941,0.00494371,2813.0,2812.9,0.07514482]
[1645843843244,0.00349424,2813.3,2812.9,0.07514482]
[1645843843443,0.20266436,2813.4,2813.0,0.07514482]
[1645843843640,0.20266436,2813.4,2813.1,0.07514482]
[1645843843844,0.20266436,2813.4,2813.2,0.07514482]
[1645843844086,0.20266436,2813.4,2813.3,0.07514482]
[1645843844283,0.20266436,2813.4,2812.9,0.07514482]
[1645843844484,1.29171988,2813.4,2812.9,0.07514482]
[1645843844685,1.29320646,2813.4,2812.9,0.07514482]
[1645843845485,1.29171988,2813.4,2812.9,0.07514482]
[1645843845885,0.00489848,2813.3,2812.9,0.07514482]
[1645843846893,1.29171988,2813.4,2812.9,0.07514482]
[1645843847091,0.00489848,2813.2,2812.9,0.07514482]
[1645843847291,1.29171988,2813.4,2812.9,0.07514482]
[1645843849545,0.00565957,2813.3,2812.9,0.07514482]
[1645843850850,0.00565954,2813.3,2812.9,0.07514482]
[1645843851592,1.29171988,2813.4,2812.9,0.07514482]
[1645843851792,0.20266436,2813.4,2812.9,0.07514482]
[1645843851994,0.00565954,2813.3,2812.9,0.07514482]
[1645843852992,1.18696292,2813.3,2812.9,0.07514482]
[1645843853194,0.00565954,2813.3,2812.9,0.07514482]
[1645843853596,0.00565954,2813.3,2813.0,0.425]
[1645843853794,0.20266436,2813.4,2813.0,2.06148163]
[1645843853993,0.20266436,2813.4,2813.1,0.07514482]
[1645843854393,0.00487017,2813.3,2813.1,0.07514482]
[1645843854597,0.20266436,2813.4,2813.1,0.07514482]
[1645843856050,1.1649462,2814.4,2813.4,0.88868]